bitfinex/quotes_BTCUSD_20240927
["timestamp","ask_amount","ask_price","bid_price","bid_amount"]
[1727464179208,0.01102037,65982.0,65981.0,0.181354]
[1727464179658,0.151549,65985.0,65981.0,0.181354]
[1727464180110,0.151549,65985.0,65982.0,0.001]
[1727464180368,0.151549,65985.0,65981.0,0.181354]
[1727464180588,0.151549,65985.0,65981.0,0.183354]
[1727464180831,0.000829,65987.0,65982.0,0.303112]
[1727464181073,0.000829,65987.0,65985.0,0.17441853]
[1727464181314,0.000829,65987.0,65985.0,0.32596753]
[1727464181537,0.000829,65987.0,65985.0,0.17441853]
[1727464181773,0.000829,65987.0,65983.0,0.151553]
[1727464181964,0.000829,65987.0,65986.0,0.151547]
[1727464182190,0.000829,65987.0,65986.0,0.23167758]
[1727464182421,0.000829,65987.0,65986.0,0.23067758]
[1727464182673,0.000829,65987.0,65986.0,0.38799212]
[1727464182901,0.000829,65987.0,65986.0,0.40739973]
[1727464183150,0.001829,65987.0,65986.0,0.40739973]
[1727464183633,0.001829,65987.0,65986.0,0.40949345]
[1727464183930,0.001829,65987.0,65986.0,0.40749345]
[1727464184429,0.001829,65987.0,65986.0,0.40949345]
[1727464184655,0.001829,65987.0,65986.0,0.318647]
[1727464185106,0.22645098,66004.0,66003.0,0.151508]
[1727464185328,0.22645098,66004.0,66003.0,0.40472653]
[1727464185561,0.22645098,66004.0,66003.0,0.230308]
[1727464185803,0.22645098,66004.0,66003.0,0.0788]
[1727464186040,0.303039,65998.0,65995.0,0.0788]
[1727464186540,0.151524,65996.0,65995.0,0.0788]
[1727464187216,0.304039,65998.0,65995.0,0.0808]
[1727464187684,0.151524,65996.0,65995.0,0.0808]
[1727464188380,0.152521,65998.0,65995.0,0.09242648]
[1727464188604,0.30303,66000.0,65995.0,0.09042648]
[1727464188774,0.151524,65996.0,65995.0,0.09042648]
[1727464189000,0.3636339,66000.0,65995.0,0.09342648]
[1727464189242,0.3636339,66000.0,65995.0,0.09842648]
[1727464189243,0.152524,65996.0,65995.0,0.09842648]
[1727464189367,0.151524,65996.0,65995.0,0.01162648]
[1727464189575,0.151524,65996.0,65989.0,0.0764]
[1727464189576,0.151533,65993.0,65989.0,0.0764]
[1727464189793,0.151537,65991.0,65989.0,0.0764]
[1727464190012,0.303053,65995.0,65989.0,0.0764]
[1727464190211,0.151532,65993.0,65989.0,0.0764]
[1727464190460,0.151535,65992.0,65989.0,0.0764]
[1727464190678,0.04084454,65994.0,65989.0,0.0764]
[1727464190888,0.19237354,65994.0,65989.0,0.0764]
[1727464191104,0.303053,65995.0,65989.0,0.0764]
[1727464191308,0.303066,65993.0,65989.0,0.0764]
[1727464191599,0.151536,65991.0,65989.0,0.0764]
[1727464192444,0.151533,65993.0,65989.0,0.0764]
[1727464192666,0.151533,65993.0,65990.0,0.01169719]
[1727464193068,0.303059,65994.0,65990.0,0.01169719]
[1727464193351,0.151534,65992.0,65990.0,0.01169719]
[1727464193565,0.303877,65996.0,65991.0,0.17441853]
[1727464193781,0.000828,65996.0,65991.0,0.17441853]
[1727464194000,0.000828,65996.0,65993.0,0.15153]
[1727464194223,0.152352,65996.0,65992.0,0.16326846]
[1727464194437,0.000828,65996.0,65994.0,0.16326317]
[1727464194654,0.152353,65996.0,65993.0,0.01173632]
[1727464194886,0.152353,65996.0,65995.0,0.01173603]
[1727464195145,0.151526,65995.0,65994.0,0.01173617]
[1727464195402,0.001,65991.0,65990.0,0.153536]
[1727464195857,0.001,65991.0,65989.0,0.0764]
[1727464196082,0.001,65991.0,65989.0,0.227939]
[1727464196317,0.0466412,65991.0,65989.0,0.0764]
[1727464196560,0.0466412,65991.0,65987.0,0.304741]
[1727464196561,0.151542,65988.0,65987.0,0.001656]
[1727464196840,0.000828,65996.0,65987.0,0.001656]
[1727464197062,0.151542,65988.0,65987.0,0.001656]
[1727464198037,0.152542,65988.0,65987.0,0.004656]
[1727464198966,0.2284103,65988.0,65987.0,0.004656]
[1727464199412,0.2274103,65988.0,65987.0,0.001656]
[1727464200127,0.2274103,65988.0,65987.0,0.002656]
[1727464200558,0.2274103,65988.0,65987.0,0.001656]
[1727464200990,0.2274103,65988.0,65987.0,0.002656]
[1727464201901,0.151538,65990.0,65987.0,0.18891722]
[1727464202145,0.151539,65990.0,65987.0,0.17707453]
[1727464202371,0.151533,65992.0,65988.0,0.01185366]
[1727464202592,0.379311,66005.0,65988.0,0.01185366]
[1727464202593,0.15154,65989.0,65988.0,0.01185366]
[1727464203076,0.151542,65988.0,65987.0,0.002656]
[1727464203312,0.151542,65988.0,65987.0,0.004656]
[1727464203542,0.151542,65988.0,65987.0,0.01677647]
[1727464203788,0.151542,65988.0,65987.0,0.004656]
[1727464204002,0.2499565,65988.0,65987.0,0.001656]
[1727464204223,0.2499565,65988.0,65987.0,0.01377647]
[1727464204478,0.2499565,65988.0,65987.0,0.01577647]
[1727464205164,0.22645098,65993.0,65987.0,0.01577647]
[1727464205373,0.22645098,65993.0,65987.0,0.01677647]
[1727464205579,0.22645098,65993.0,65988.0,0.151542]
[1727464205580,0.151536,65991.0,65988.0,0.151542]
[1727464205787,0.151541,65989.0,65987.0,0.01677647]
[1727464206017,0.151541,65989.0,65988.0,0.01212033]
[1727464206224,0.151538,65990.0,65989.0,0.076]
[1727464206646,0.151538,65990.0,65989.0,0.08812019]
[1727464207332,0.0303898,65991.0,65989.0,0.08812019]
[1727464207548,0.151538,65990.0,65989.0,0.08812019]
[1727464208618,0.151538,65990.0,65989.0,0.08912019]
[1727464208840,0.151538,65990.0,65989.0,0.09012019]
[1727464209061,0.151538,65990.0,65989.0,0.078]
[1727464209262,0.151538,65990.0,65989.0,0.081]
[1727464209475,0.2499511,65990.0,65989.0,0.09112019]
[1727464209726,0.2499511,65990.0,65989.0,0.09412019]
[1727464211631,0.303071,65992.0,65989.0,0.09412019]
[1727464211632,0.151534,65992.0,65989.0,0.09412019]
[1727464211846,0.000828,65996.0,65995.0,0.151526]
[1727464212066,0.000828,65996.0,65995.0,0.08073014]
[1727464212284,0.000828,65996.0,65995.0,0.2443799]
[1727464212718,0.000828,65996.0,65995.0,0.24134976]
[1727464214869,0.000828,65996.0,65995.0,0.09582376]
[1727464214870,0.0170627,65996.0,65995.0,0.09582376]
[1727464215115,0.152352,65996.0,65995.0,0.08982376]
[1727464215351,0.153352,65996.0,65995.0,0.09782376]
[1727464215585,0.2292948,65996.0,65995.0,0.02512376]
[1727464215829,0.15154,65989.0,65988.0,0.0798]
[1727464216275,0.0787708,65996.0,65988.0,0.0798]
[1727464216276,0.0777708,65996.0,65988.0,0.0798]
[1727464216492,0.151537,65991.0,65988.0,0.0798]
[1727464216708,0.15154,65989.0,65988.0,0.0798]
[1727464216916,0.303066,65993.0,65988.0,0.0798]
[1727464217157,0.15154,65989.0,65988.0,0.0798]
[1727464217406,0.151542,65988.0,65987.0,0.001656]
[1727464218770,0.152542,65988.0,65987.0,0.006656]
[1727464219421,0.153542,65988.0,65987.0,0.011656]
[1727464220058,0.002,65988.0,65987.0,0.163201]
[1727464220268,0.002,65988.0,65987.0,0.011656]
[1727464220970,0.002,65988.0,65987.0,0.163201]
[1727464221859,0.002,65988.0,65987.0,0.011656]
[1727464222079,0.1840491,65988.0,65987.0,0.011656]
[1727464222826,0.38146763,65988.0,65987.0,0.011656]
[1727464224531,0.38046763,65988.0,65987.0,0.006656]
[1727464224749,0.2050491,65988.0,65987.0,0.001656]
[1727464224983,0.2140491,65988.0,65987.0,0.002656]
[1727464225422,0.2130491,65988.0,65987.0,0.002656]
[1727464225889,0.2190491,65988.0,65987.0,0.003656]
[1727464227501,0.24280795,65988.0,65987.0,0.003656]
[1727464228389,0.24280795,65988.0,65987.0,0.00418869]
[1727464228612,0.2190491,65988.0,65987.0,0.00418869]
[1727464230262,0.49346763,65988.0,65987.0,0.00418869]
[1727464231161,0.47046763,65988.0,65987.0,0.00418869]
[1727464231403,0.64626763,65988.0,65987.0,0.00418869]
[1727464231655,0.66926763,65988.0,65987.0,0.00418869]
[1727464233097,0.68426763,65988.0,65987.0,0.00418869]
[1727464234085,0.68812508,65988.0,65987.0,0.00418869]
[1727464234551,0.68212508,65988.0,65987.0,0.00318869]
[1727464234784,0.65112508,65988.0,65987.0,0.00218869]
[1727464235011,0.70212508,65988.0,65987.0,0.00218869]
[1727464235485,0.68812508,65988.0,65987.0,0.00218869]
[1727464235719,0.70212508,65988.0,65987.0,0.00218869]
[1727464235962,0.72588796,65988.0,65987.0,0.00218869]
[1727464236202,0.71188796,65988.0,65987.0,0.00218869]
[1727464236440,0.71388796,65988.0,65987.0,0.00218869]
[1727464236678,0.72788796,65988.0,65987.0,0.00218869]
[1727464237112,0.70412508,65988.0,65987.0,0.00218869]
[1727464237627,0.279556,65982.0,65981.0,0.001654]
[1727464237853,0.63737453,65982.0,65981.0,0.001654]
[1727464238785,0.64937453,65982.0,65981.0,0.001654]
[1727464239007,0.67313978,65982.0,65981.0,0.001654]
[1727464239471,0.66113978,65982.0,65981.0,0.001654]
[1727464239687,0.81752784,65982.0,65981.0,0.001654]
[1727464239926,0.83152784,65982.0,65981.0,0.001654]
[1727464240414,0.82952784,65982.0,65981.0,0.001654]
[1727464240687,0.83152784,65982.0,65981.0,0.001654]
[1727464240908,0.80776259,65982.0,65981.0,0.001654]
[1727464241341,0.174597,65964.0,65963.0,0.0509694]
[1727464241820,0.174597,65964.0,65963.0,0.001656]
[1727464242466,0.29836529,65964.0,65963.0,0.001656]
[1727464243127,0.30036529,65964.0,65963.0,0.001656]
[1727464244210,0.30736529,65964.0,65963.0,0.001656]
[1727464244419,0.46175335,65964.0,65963.0,0.001656]
[1727464244639,0.47373194,65964.0,65963.0,0.001656]
[1727464245070,0.46573194,65964.0,65963.0,0.001656]
[1727464245304,0.47773194,65964.0,65963.0,0.001656]
[1727464245522,0.47073194,65964.0,65963.0,0.001656]
[1727464245753,0.69718292,65964.0,65963.0,0.001656]
[1727464245963,0.48673194,65964.0,65963.0,0.001656]
[1727464246209,0.48773194,65964.0,65963.0,0.001656]
[1727464246424,0.48673194,65964.0,65963.0,0.001656]
[1727464246640,0.47773194,65964.0,65963.0,0.001656]
[1727464247071,0.79491463,65964.0,65963.0,0.001656]
[1727464247289,0.64826365,65964.0,65963.0,1e-06]
[1727464247499,0.63426365,65964.0,65963.0,1e-06]
[1727464248006,0.62226365,65964.0,65963.0,1e-06]
[1727464248232,0.63626365,65964.0,65963.0,1e-06]
[1727464248460,0.62226365,65964.0,65963.0,1e-06]
[1727464248686,0.63626365,65964.0,65963.0,1e-06]
[1727464248913,0.65026365,65964.0,65963.0,1e-06]
[1727464250505,0.65109165,65964.0,65963.0,1e-06]
[1727464250958,0.87754263,65964.0,65963.0,1e-06]
[1727464251188,0.65109165,65964.0,65963.0,1e-06]
[1727464251629,0.67486451,65964.0,65963.0,1e-06]
[1727464251875,0.67486451,65964.0,65957.0,1e-06]
[1727464251876,0.64322953,65958.0,65957.0,1e-06]
[1727464252105,0.67225029,65958.0,65957.0,1e-06]
[1727464253535,0.89870127,65958.0,65957.0,1e-06]
[1727464253747,0.67225029,65958.0,65957.0,1e-06]
[1727464254177,0.68625029,65958.0,65957.0,1e-06]
[1727464254396,0.85663835,65958.0,65957.0,1e-06]
[1727464254610,0.84263835,65958.0,65957.0,1e-06]
[1727464254835,0.82863835,65958.0,65957.0,1e-06]
[1727464255052,0.85663835,65958.0,65957.0,1e-06]
[1727464256209,0.20863176,65958.0,65957.0,1e-06]
[1727464256857,0.19463176,65958.0,65957.0,1e-06]
[1727464257085,0.18063176,65958.0,65957.0,1e-06]
[1727464257310,0.19463176,65958.0,65957.0,1e-06]
[1727464257537,0.29463176,65958.0,65957.0,1e-06]
[1727464257754,0.46852518,65958.0,65957.0,1e-06]
[1727464258215,0.48252518,65958.0,65957.0,1e-06]
[1727464258423,0.46852518,65958.0,65957.0,1e-06]
[1727464258649,0.45452518,65958.0,65957.0,1e-06]
[1727464258878,0.46852518,65958.0,65957.0,1e-06]
[1727464259349,0.48252518,65958.0,65957.0,1e-06]
[1727464259594,0.50629714,65958.0,65957.0,1e-06]
[1727464260320,0.49229714,65958.0,65957.0,1e-06]
[1727464260557,0.50629714,65958.0,65957.0,1e-06]
[1727464261068,0.47829714,65958.0,65957.0,1e-06]
[1727464261570,0.49229714,65958.0,65957.0,1e-06]
[1727464261832,0.50629714,65958.0,65957.0,1e-06]
[1727464262094,0.47829714,65958.0,65957.0,1e-06]
[1727464262286,0.50629714,65958.0,65957.0,1e-06]
[1727464262719,0.49229714,65958.0,65957.0,1e-06]
[1727464262932,0.50629714,65958.0,65957.0,1e-06]
[1727464263614,0.49229714,65958.0,65957.0,1e-06]
[1727464264095,0.50629714,65958.0,65957.0,1e-06]
[1727464264306,0.49229714,65958.0,65957.0,1e-06]
[1727464264532,0.47829714,65958.0,65957.0,1e-06]
[1727464264762,0.73774812,65958.0,65957.0,1e-06]
[1727464264984,0.60689714,65958.0,65957.0,1e-06]
[1727464265210,0.69579714,65958.0,65957.0,1e-06]
[1727464265654,0.68179714,65958.0,65957.0,1e-06]
[1727464265881,0.69579714,65958.0,65957.0,1e-06]
[1727464266094,0.68179714,65958.0,65957.0,1e-06]
[1727464266307,0.88447616,65958.0,65957.0,1e-06]
[1727464266536,0.65802518,65958.0,65957.0,1e-06]
[1727464266817,0.005,65948.0,65938.0,0.1261623]
[1727464267059,0.44907153,65940.0,65938.0,0.0495623]
[1727464267300,0.62657153,65940.0,65938.0,0.0495623]
[1727464267522,0.62657153,65940.0,65939.0,0.01317586]
[1727464267743,0.62857153,65940.0,65939.0,0.001656]
[1727464268680,0.62657153,65940.0,65939.0,0.001656]
[1727464268898,0.79695959,65940.0,65939.0,0.001656]
[1727464269124,0.81095959,65940.0,65939.0,0.001656]
[1727464269343,0.81295959,65940.0,65939.0,0.001656]
[1727464270709,0.81095959,65940.0,65939.0,0.001656]
[1727464270921,0.81195959,65940.0,65939.0,0.001656]
[1727464271165,0.81295959,65940.0,65939.0,0.001656]
[1727464271591,0.81580964,65940.0,65939.0,0.001656]
[1727464271821,0.81680964,65940.0,65939.0,0.001656]
[1727464272991,0.81580964,65940.0,65939.0,0.001656]
[1727464273211,0.81480964,65940.0,65939.0,0.001656]
[1727464273662,0.73560964,65940.0,65939.0,0.001656]
[1727464273870,0.75144234,65940.0,65939.0,0.001656]
[1727464275699,0.72344234,65940.0,65939.0,0.001656]
[1727464275957,0.29433575,65940.0,65939.0,0.001656]
[1727464276215,0.30833575,65940.0,65939.0,0.001656]
[1727464276442,0.29433575,65940.0,65939.0,0.001656]
[1727464276926,0.29433575,65940.0,65939.0,0.001256]
[1727464277681,0.30833575,65940.0,65939.0,0.001256]
[1727464277928,0.45200185,65940.0,65939.0,0.001256]
[1727464278179,0.43800185,65940.0,65939.0,0.001256]
[1727464278423,0.46600185,65940.0,65939.0,0.001256]
[1727464278878,0.45200185,65940.0,65939.0,0.001256]
[1727464279356,0.69245283,65940.0,65939.0,0.001256]
[1727464279590,0.46600185,65940.0,65939.0,0.001256]
[1727464279822,0.45200185,65940.0,65939.0,0.001256]
[1727464280050,0.46500185,65940.0,65939.0,0.001256]
[1727464280564,0.45100185,65940.0,65939.0,0.001256]
[1727464281057,0.46300185,65940.0,65939.0,0.001256]
[1727464283446,0.69445283,65940.0,65939.0,0.001256]
[1727464283675,0.55050185,65940.0,65939.0,0.001256]
[1727464284154,0.34910053,65927.0,65926.0,0.0517351]
[1727464284630,0.34910053,65927.0,65926.0,0.00244]
[1727464284878,0.34910053,65927.0,65926.0,0.01410043]
[1727464285076,0.34910053,65927.0,65926.0,0.00244]
[1727464285527,0.35810053,65927.0,65926.0,0.00244]
[1727464285733,0.45695953,65927.0,65926.0,0.00244]
[1727464285961,0.282541,65927.0,65926.0,0.00244]
[1727464287859,0.282541,65927.0,65926.0,0.0027951]
[1727464290195,0.30632132,65927.0,65926.0,0.0027951]
[1727464293321,0.151687,65925.0,65924.0,0.0758]
[1727464293563,0.172227,65925.0,65924.0,0.0758]
[1727464294538,0.174227,65925.0,65924.0,0.0758]
[1727464295070,0.177227,65925.0,65924.0,0.0758]
[1727464296059,2.177227,65925.0,65924.0,0.0758]
[1727464296256,2.19288081,65925.0,65924.0,0.0758]
[1727464297946,2.1968721,65925.0,65924.0,0.0758]
[1727464298564,2.18121829,65925.0,65924.0,0.0758]
[1727464298858,0.151694,65922.0,65921.0,0.001656]
[1727464299143,0.174694,65922.0,65921.0,0.001656]
[1727464301633,0.17388884,65922.0,65921.0,0.001656]
[1727464301856,0.22009771,65922.0,65921.0,0.081756]
[1727464302559,0.17388884,65922.0,65921.0,0.081756]
[1727464307717,0.17388884,65922.0,65921.0,0.001656]
[1727464307952,0.44830737,65922.0,65921.0,0.001656]
[1727464308390,0.27388884,65922.0,65921.0,0.001656]
[1727464309058,0.28188884,65922.0,65921.0,0.001656]
[1727464309316,0.4382769,65922.0,65921.0,0.001656]
[1727464310428,0.4302769,65922.0,65921.0,0.001656]
[1727464310673,0.4402769,65922.0,65921.0,0.001656]
[1727464310896,0.4532769,65922.0,65921.0,0.001656]
[1727464311122,0.4402769,65922.0,65921.0,0.001656]
[1727464311348,0.4512769,65922.0,65921.0,0.001656]
[1727464311801,0.47505932,65922.0,65921.0,0.001656]
[1727464312709,0.31867126,65922.0,65921.0,0.001656]
[1727464312918,0.29488884,65922.0,65921.0,0.001656]
[1727464313350,0.27188884,65922.0,65921.0,0.001656]
[1727464314005,0.27271784,65922.0,65921.0,0.001656]
[1727464314451,0.34827998,65922.0,65906.0,0.00025]
[1727464314677,0.174728,65907.0,65906.0,0.00025]
[1727464314902,0.274728,65907.0,65906.0,0.00025]
[1727464315128,0.44914653,65907.0,65906.0,0.00025]
[1727464315374,0.274728,65907.0,65906.0,0.00025]
[1727464315862,0.37927039,65907.0,65906.0,0.00025]
[1727464316134,0.274728,65907.0,65906.0,0.00025]
[1727464317338,0.279728,65907.0,65906.0,0.00025]
[1727464318571,0.283728,65907.0,65906.0,0.00025]
[1727464319048,0.2995607,65907.0,65906.0,0.00025]
[1727464321163,0.2765607,65907.0,65906.0,0.00025]
[1727464321378,0.1765607,65907.0,65906.0,0.00025]
[1727464321847,0.1765607,65907.0,65906.0,0.01551489]
[1727464322063,0.1765607,65907.0,65906.0,0.00025]
[1727464322286,0.1765607,65907.0,65906.0,0.01551489]
[1727464322503,0.1765607,65907.0,65906.0,0.00025]
[1727464322715,0.1765607,65907.0,65906.0,0.01551489]
[1727464322942,0.1765607,65907.0,65906.0,0.00025]
[1727464323157,0.1765607,65907.0,65906.0,0.01551489]
[1727464323371,0.1765607,65907.0,65906.0,0.00025]
[1727464323585,0.1765607,65907.0,65906.0,0.01551489]
[1727464323801,0.1765607,65907.0,65906.0,0.00025]
[1727464324015,0.1765607,65907.0,65906.0,0.01551489]
[1727464324201,0.1765607,65907.0,65906.0,0.00025]
[1727464326063,0.1765607,65907.0,65906.0,0.001908]
[1727464326493,0.25490617,65907.0,65906.0,0.001908]
[1727464326730,0.1765607,65907.0,65906.0,0.001908]
[1727464329308,0.1765607,65907.0,65906.0,0.001658]
[1727464330255,0.303429,65914.0,65906.0,0.001658]
[1727464330256,0.000829,65922.0,65906.0,0.34687653]
[1727464330487,0.22645098,65912.0,65908.0,0.156726]
[1727464330740,0.22645098,65919.0,65911.0,0.21971106]
[1727464330965,0.22645098,65919.0,65915.0,0.17441853]
[1727464331204,0.22645098,65919.0,65916.0,0.00303372]
[1727464331439,0.22645098,65919.0,65916.0,0.01712534]
[1727464331686,0.22645098,65918.0,65916.0,0.01712534]
[1727464331944,0.000829,65922.0,65916.0,0.01712534]
[1727464332244,0.151717,65912.0,65911.0,0.001]
[1727464332505,0.151715,65913.0,65906.0,0.077658]
[1727464332730,0.151705,65918.0,65911.0,0.01697664]
[1727464332964,0.151705,65917.0,65906.0,0.077658]
[1727464333220,0.151708,65916.0,65906.0,0.077658]
[1727464333693,0.21175098,65919.0,65906.0,0.077658]
[1727464333934,0.151725,65909.0,65906.0,0.000658]
[1727464334166,0.174705,65917.0,65916.0,0.001]
[1727464334425,0.151714,65914.0,65907.0,0.0170388]
[1727464334675,0.151722,65910.0,65906.0,0.000658]
[1727464334911,0.151723,65910.0,65906.0,0.000658]
[1727464335147,0.151719,65912.0,65907.0,0.01706577]
[1727464335373,0.303429,65914.0,65907.0,0.01706577]
[1727464335374,0.151721,65911.0,65907.0,0.01706577]
[1727464335607,0.2403077,65917.0,65907.0,0.01706577]
[1727464335608,0.023,65915.0,65907.0,0.01706577]
[1727464335836,0.023,65915.0,65906.0,0.000658]
[1727464335837,0.1,65916.0,65908.0,0.17441853]
[1727464336305,0.1,65916.0,65909.0,0.01708873]
[1727464336778,0.1,65918.0,65906.0,0.003658]
[1727464337041,0.151713,65914.0,65910.0,0.01710443]
[1727464337287,0.1,65915.0,65906.0,0.000658]
[1727464337531,0.151715,65913.0,65907.0,0.002]
[1727464337774,0.251712,65915.0,65907.0,0.01710515]
[1727464338030,0.151712,65915.0,65907.0,0.01710515]
[1727464338495,0.001,65914.0,65907.0,0.01710515]
[1727464339214,0.001828,65914.0,65907.0,0.01710515]
[1727464339938,0.000828,65914.0,65907.0,0.01710515]
[1727464340596,0.000828,65914.0,65908.0,0.17441853]
[1727464340835,0.001828,65914.0,65908.0,0.17441853]
[1727464341069,0.002828,65914.0,65909.0,0.01710467]
[1727464341525,0.000828,65914.0,65909.0,0.01710467]
[1727464341740,0.001828,65914.0,65909.0,0.01710467]
[1727464341954,0.002828,65914.0,65909.0,0.01710467]
[1727464342863,0.22645098,65911.0,65909.0,0.01710467]
[1727464343080,0.002828,65914.0,65909.0,0.01710467]
[1727464343081,0.151722,65910.0,65909.0,0.01710467]
[1727464343308,0.379635,65912.0,65906.0,0.000658]
[1727464343309,0.151727,65908.0,65906.0,0.000658]
[1727464343528,0.023,65911.0,65909.0,0.0170963]
[1727464343788,0.023,65911.0,65909.0,0.00023722]
[1727464343789,0.151722,65910.0,65909.0,0.00023722]
[1727464344976,0.151722,65910.0,65909.0,0.00223722]
[1727464345225,0.151722,65910.0,65909.0,0.00523722]
[1727464345454,0.151722,65910.0,65909.0,0.00323722]
[1727464345683,0.151722,65910.0,65909.0,0.00623722]
[1727464345917,0.174722,65910.0,65909.0,0.00323722]
[1727464346158,0.366622,65910.0,65909.0,0.00323722]
[1727464347372,0.372622,65910.0,65909.0,0.00423722]
[1727464347606,0.43481928,65910.0,65909.0,0.00023722]
[1727464347829,0.44281928,65910.0,65909.0,0.00123722]
[1727464348054,0.58589165,65910.0,65909.0,0.00023722]
[1727464348543,0.59789165,65910.0,65909.0,0.00123722]
[1727464348768,0.59789165,65910.0,65909.0,0.00023722]
[1727464349004,0.59989165,65910.0,65909.0,0.00123722]
[1727464349229,0.62367855,65910.0,65909.0,0.00123722]
[1727464349452,0.63067855,65910.0,65909.0,0.00123722]
[1727464349920,0.56248127,65910.0,65909.0,0.00123722]
[1727464350392,0.54848127,65910.0,65909.0,0.00023722]
[1727464350614,0.52469437,65910.0,65909.0,0.00023722]
[1727464350837,0.53367111,65910.0,65909.0,0.00189322]
[1727464351049,0.54567111,65910.0,65909.0,0.00189322]
[1727464351305,0.53367111,65910.0,65909.0,0.00189322]
[1727464351585,0.54567111,65910.0,65909.0,0.00189322]
[1727464352255,0.39459874,65910.0,65909.0,0.00189322]
[1727464353910,0.328228,65907.0,65906.0,0.000158]
[1727464354166,0.62564653,65907.0,65906.0,0.000158]
[1727464354395,0.64943525,65907.0,65906.0,0.000158]
[1727464354848,0.80582331,65907.0,65906.0,0.000158]
[1727464355090,0.81982331,65907.0,65906.0,0.000158]
[1727464355577,0.93343203,65907.0,65906.0,0.000158]
[1727464356518,0.81982331,65907.0,65906.0,0.000158]
[1727464357219,0.81003459,65907.0,65906.0,0.000158]
[1727464357481,0.82403459,65907.0,65906.0,0.000158]
[1727464357709,0.57906097,65907.0,65906.0,0.000158]
[1727464357935,0.55635078,65907.0,65906.0,0.000158]
[1727464358160,0.488228,65907.0,65906.0,0.000158]
[1727464358622,0.460228,65907.0,65906.0,0.000158]
[1727464358852,0.44536406,65907.0,65906.0,0.000158]
[1727464359075,0.47336406,65907.0,65906.0,0.000158]
[1727464360479,0.47059338,65907.0,65906.0,0.000158]
[1727464360944,0.49859338,65907.0,65906.0,0.000158]
[1727464361425,0.48459338,65907.0,65906.0,0.000158]
[1727464361671,0.49759338,65907.0,65906.0,0.000158]
[1727464362134,0.47059338,65907.0,65906.0,0.000158]
[1727464363581,0.49859338,65907.0,65906.0,0.000158]
[1727464363815,0.48459338,65907.0,65906.0,0.000158]
[1727464364043,0.48159338,65907.0,65906.0,0.000158]
[1727464364542,0.49115291,65907.0,65906.0,0.000158]
[1727464364760,0.48015291,65907.0,65906.0,0.000158]
[1727464364987,0.46915291,65907.0,65906.0,0.000158]
[1727464365212,0.49715291,65907.0,65906.0,0.000158]
[1727464365437,0.48315291,65907.0,65906.0,0.000158]
[1727464366791,0.46915291,65907.0,65906.0,0.000158]
[1727464367040,0.63854097,65907.0,65906.0,0.000158]
[1727464367282,0.49597029,65907.0,65906.0,0.000158]
[1727464367518,0.46897029,65907.0,65906.0,0.000158]
[1727464367748,0.27447029,65907.0,65906.0,0.000158]
[1727464368000,0.26868144,65907.0,65906.0,0.000158]
[1727464368451,0.26868144,65907.0,65906.0,0.01816114]
[1727464368678,0.25968144,65907.0,65906.0,0.000158]
[1727464368904,0.26068144,65907.0,65906.0,0.000158]
[1727464369144,0.25968144,65907.0,65906.0,0.01816114]
[1727464369381,0.25968144,65907.0,65906.0,0.000158]
[1727464369681,0.28268144,65907.0,65906.0,0.000158]
[1727464369928,0.28268144,65907.0,65906.0,0.01816114]
[1727464370176,0.260728,65907.0,65906.0,0.000158]
[1727464370674,0.262728,65907.0,65906.0,0.000158]
[1727464370960,0.251728,65907.0,65906.0,0.01816114]
[1727464371421,0.151728,65907.0,65906.0,0.01816114]
[1727464371918,0.151728,65907.0,65906.0,0.19257967]
[1727464372176,0.001,65907.0,65906.0,0.19257967]
[1727464372385,0.001,65907.0,65906.0,0.34431067]
[1727464372616,0.001,65907.0,65906.0,0.19257967]
[1727464373091,0.152728,65907.0,65906.0,0.19257967]
[1727464374017,0.151728,65907.0,65906.0,0.01816114]
[1727464374266,0.152728,65907.0,65906.0,0.01816114]
[1727464374496,0.151728,65907.0,65906.0,0.01816114]
[1727464374750,0.152728,65907.0,65906.0,0.01816114]
[1727464375023,0.2733182,65907.0,65906.0,0.01816114]
[1727464375240,0.2733182,65907.0,65906.0,0.000158]
[1727464375930,0.2753182,65907.0,65906.0,0.000158]
[1727464376814,0.2763182,65907.0,65906.0,0.000158]
[1727464377380,0.2733182,65907.0,65906.0,0.000158]
[1727464377475,0.2803182,65907.0,65906.0,0.000158]
[1727464377701,0.2863182,65907.0,65906.0,0.000158]
[1727464377950,0.2793182,65907.0,65906.0,0.000158]
[1727464378186,0.2853182,65907.0,65906.0,0.000158]
[1727464378403,0.2733182,65907.0,65906.0,0.000158]
[1727464379309,0.2793182,65907.0,65906.0,0.000158]
[1727464379805,0.2853182,65907.0,65906.0,0.000158]
[1727464380278,0.2793182,65907.0,65906.0,0.000158]
[1727464380732,0.2823182,65907.0,65906.0,0.000158]
[1727464380990,0.2633182,65907.0,65906.0,0.000158]
[1727464381223,0.2543182,65907.0,65906.0,0.000158]
[1727464381449,0.2573182,65907.0,65906.0,0.000158]
[1727464381660,0.2603182,65907.0,65906.0,0.000158]
[1727464381917,0.154728,65907.0,65906.0,0.000158]
[1727464382144,0.160728,65907.0,65906.0,0.000158]
[1727464382375,0.154728,65907.0,65906.0,0.000158]
[1727464382832,0.151728,65907.0,65906.0,0.000158]
[1727464383313,0.157728,65907.0,65906.0,0.000158]
[1727464383873,0.162728,65907.0,65906.0,0.000158]
[1727464384104,0.157728,65907.0,65906.0,0.000158]
[1727464384331,0.2702067,65907.0,65906.0,0.000158]
[1727464385016,0.2732067,65907.0,65906.0,0.000158]
[1727464385723,0.2702067,65907.0,65906.0,0.000158]
[1727464386457,0.2672067,65907.0,65906.0,0.000158]
[1727464386675,0.2732067,65907.0,65906.0,0.000158]
[1727464386913,0.163728,65907.0,65906.0,0.000158]
[1727464387138,0.164556,65907.0,65906.0,0.000158]
[1727464387604,0.158556,65907.0,65906.0,0.000158]
[1727464388048,0.155556,65907.0,65906.0,0.000158]
[1727464388279,0.158556,65907.0,65906.0,0.000158]
[1727464389391,0.2736175,65907.0,65906.0,0.000158]
[1727464391659,0.2706175,65907.0,65906.0,0.000158]
[1727464391883,0.2766175,65907.0,65906.0,0.000158]
[1727464393159,0.4866175,65907.0,65906.0,0.000158]
[1727464393366,0.64922452,65907.0,65906.0,0.000158]